Workbook

Sheet 2-factor HJM
B2: 2-factor HJM. Inputs in grey cells: Maturities and initial forward rates. See VB for volatilities and model
E4: m | F4: =m(F$9) -> 0.00000 | G4: =m(G$9) -> 0.00008 | H4: 0.00021 | I4: 0.00032 | J4: 0.00064 | K4: 0.00734
E5: vol1 | F5: =_vol1(F$9) -> 0.00800 | G5: 0.00800 | H5: 0.00800 | I5: 0.00800 | J5: 0.00800 | K5: 0.00800
E6: vol2 | F6: =_vol2(F$9) -> 0.00425 | G6: 0.00340 | H6: 0.00170 | I6: 0.00000 | J6: -0.00425 | K6: -0.02125
F8: Maturities and Forward rates
B9: Timestep | C9: 0.05 | E9: Time | F9: 0 | G9: 1 | H9: 3 | I9: 5 | J9: 10 | K9: 30 | L9: years | M9: Random #s | N9: Random #s
E10: 0 | F10: 0.0695 | G10: 0.075 | H10: 0.078 | I10: 0.0797 | J10: 0.082 | K10: 0.086
E11: =E10+$C$9 -> 0.05 | F11: =F10+F$4*$C$9+SQRT($C$9)*F$5*$M11+SQRT($C$9)*F$6*$N11+(G10-F10)/(G$9-F$9)*$C$9 -> 0.06988489868 | G11: =G10+G$4*$C$9+SQRT($C$9)*G$5*$M11+SQRT($C$9)*G$6*$N11+(H10-G10)/(H$9-G$9)*$C$9 -> 0.07507908115 | H11: =H10+H$4*$C$9+SQRT($C$9)*H$5*$M11+SQRT($C$9)*H$6*$N11+(I10-H10)/(I$9-H$9)*$C$9 -> 0.07783375398 | I11: =I10+I$4*$C$9+SQRT($C$9)*I$5*$M11+SQRT($C$9)*I$6*$N11+(J10-I10)/(J$9-I$9)*$C$9 -> 0.07930055981 | J11: =J10+J$4*$C$9+SQRT($C$9)*J$5*$M11+SQRT($C$9)*J$6*$N11+(K10-J10)/(K$9-J$9)*$C$9 -> 0.08105522095 | K11: =K10+K$4*$C$9+SQRT($C$9)*K$5*$M11+SQRT($C$9)*K$6*$N11 -> 0.08318680298 | M11: =RAND()+RAND()+RAND()+RAND()+RAND()+RAND()+RAND()+RAND()+RAND()+RAND()+RAND()+RAND()-6 -> -0.2450955162 | N11: =RAND()+RAND()+RAND()+RAND()+RAND()+RAND()+RAND()+RAND()+RAND()+RAND()+RAND()+RAND()-6 -> 0.5769990492
E12: =E11+$C$9 -> 0.1 | F12: =F11+F$4*$C$9+SQRT($C$9)*F$5*$M12+SQRT($C$9)*F$6*$N12+(G11-F11)/(G$9-F$9)*$C$9 -> 0.07139446434 | G12: =G11+G$4*$C$9+SQRT($C$9)*G$5*$M12+SQRT($C$9)*G$6*$N12+(H11-G11)/(H$9-G$9)*$C$9 -> 0.07623844652 | H12: =H11+H$4*$C$9+SQRT($C$9)*H$5*$M12+SQRT($C$9)*H$6*$N12+(I11-H11)/(I$9-H$9)*$C$9 -> 0.07864101456 | I12: =I11+I$4*$C$9+SQRT($C$9)*I$5*$M12+SQRT($C$9)*I$6*$N12+(J11-I11)/(J$9-I$9)*$C$9 -> 0.07976792173 | J12: =J11+J$4*$C$9+SQRT($C$9)*J$5*$M12+SQRT($C$9)*J$6*$N12+(K11-J11)/(K$9-J$9)*$C$9 -> 0.08071032398 | K12: =K11+K$4*$C$9+SQRT($C$9)*K$5*$M12+SQRT($C$9)*K$6*$N12 -> 0.07990734963 | M12: =RAND()+RAND()+RAND()+RAND()+RAND()+RAND()+RAND()+RAND()+RAND()+RAND()+RAND()+RAND()-6 -> 0.2425101303 | N12: 0.8586934903
E13: 0.15 | F13: 0.07419452195 | G13: 0.07851216858 | H13: 0.08019325167 | I13: 0.08061094976 | J13: 0.07981766606 | K13: =K12+K$4*$C$9+SQRT($C$9)*K$5*$M13+SQRT($C$9)*K$6*$N13 -> 0.07239061867 | M13: 0.4570545357 | N13: 1.831212869
E14: 0.2 | F14: 0.0751253642 | G14: 0.07917023491 | H14: 0.08062069994 | I14: 0.08082012231 | J14: 0.07951834929 | K14: 0.07038938889 | M14: 0.1124213254 | N14: 0.5407123135
E15: 0.25 | F15: 0.07421208188 | G15: 0.07843508962 | H15: 0.08054132435 | I15: 0.08140892219 | J15: 0.08181468796 | K15: 0.07984886133 | M15: 0.3274819992 | N15: -1.790268067
E16: 0.3 | F16: 0.07476122904 | G16: 0.07863461572 | H16: 0.08032643931 | I16: 0.08079209266 | J16: 0.08023000225 | K16: 0.07470449186 | M16: -0.3560307595 | N16: 1.025838492
E17: 0.35 | F17: 0.07493383354 | G17: 0.07898533518 | H17: 0.08130428978 | I17: 0.08240959916 | J17: 0.08348350811 | K17: 0.08481951791 | M17: 0.89841153 | N17: -1.713293415
E18: 0.4 | F18: 0.07338492901 | G18: 0.07704736975 | H18: 0.07884587174 | I18: 0.07944330899 | J18: 0.07928426923 | K18: 0.07598567794 | M18: -1.67315422 | N18: 1.306442071
E19: 0.45 | F19: 0.0752895361 | G19: 0.07878144328 | H19: 0.08048397838 | I19: 0.08099808202 | J19: 0.08066726456 | K19: 0.07698737075 | M19: 0.8610893342 | N19: 0.1905883597
E20: 0.5 | F20: 0.07372762213 | G20: 0.07694945644 | H20: 0.07834500686 | I20: 0.07856480885 | J20: 0.07753464416 | K20: 0.07136106493 | M20: -1.367336001 | N20: 0.7465369845
E21: 0.55 | F21: 0.07553003207 | G21: 0.0786207953 | H21: 0.07997602362 | I21: 0.08016823353 | J21: 0.07910534464 | K21: 0.07310776923 | M21: 0.8931561678 | N21: 0.0458703347
E22: 0.6 | F22: 0.07628618243 | G22: 0.07925683749 | H22: 0.08058289678 | I22: 0.08075871198 | J22: 0.07969095319 | K22: 0.0739772898 | M22: 0.3270849492 | N22: 0.0173675194
E23: 0.65 | F23: 0.07553316568 | G23: 0.07837537977 | H23: 0.07964537145 | I23: 0.07977793518 | J23: 0.0786380201 | K23: 0.07293537953 | M23: -0.5512462215 | N23: 0.08896889283
E24: 0.7 | F24: 0.07793604962 | G24: 0.08045610475 | H24: 0.08127287251 | I24: 0.08096506777 | J24: 0.07876005375 | K24: 0.0690936413 | M24: 0.6610553401 | N24: 1.13459825
E25: 0.75 | F25: 0.0760697061 | G25: 0.07849183705 | H25: 0.07929461713 | I25: 0.078985717 | J25: 0.07681363273 | K25: 0.06758250638 | M25: -1.103108588 | N25: -0.02004110743
E26: 0.8 | F26: 0.07510740277 | G26: 0.07732092043 | H26: 0.07787956389 | I26: 0.0773394538 | J26: 0.07462488008 | K26: 0.06352323914 | M26: -0.9170910558 | N26: 0.5862522775
E27: 0.85 | F27: 0.07319529392 | G27: 0.07550401017 | H27: 0.07641780946 | I27: 0.07624581404 | J27: 0.07448692267 | K27: 0.06750913617 | M27: -0.6051325533 | N27: -0.9894371508
E28: 0.9 | F28: 0.07551545135 | G28: 0.07766948677 | H28: 0.07843076905 | I28: 0.07811924548 | J28: 0.07604679729 | K28: 0.0681025877 | M28: 1.048168242 | N28: 0.3469338539
E29: 0.95 | F29: 0.07218051666 | G29: 0.07445218393 | H29: 0.07559805707 | I29: 0.07568414111 | J29: 0.07464081345 | K29: 0.07110042818 | M29: -1.358623661 | N29: -1.065164474
E30: 1 | F30: 0.07061342262 | G30: 0.072737475 | H30: 0.07373030458 | I30: 0.07367638741 | J30: 0.07231799904 | K30: 0.06779083015 | M30: -1.125480332 | N30: 0.3500293677
E31: 1.05 | F31: 0.06563487019 | G31: 0.06793160212 | H31: 0.06940519377 | I31: 0.06984510437 | J31: 0.06975603787 | K31: 0.070579348 | M31: -2.143102977 | N31: -1.316445194
E32: 1.1 | F32: 0.06676087032 | G32: 0.06865900878 | H32: 0.06946437296 | I32: 0.0692491427 | J32: 0.06755679059 | K32: 0.06222404178 | M32: -0.3415990799 | N32: 1.707024334
E33: 1.15 | F33: 0.06759756647 | G33: 0.06922117084 | H33: 0.06960030547 | I33: 0.06897195076 | J33: 0.06628113265 | K33: 0.05722442261 | M33: -0.1544387419 | N33: 1.071268758
E34: 1.2 | F34: 0.06881812581 | G34: 0.07027072682 | H34: 0.07042487909 | I34: 0.06958466293 | J34: 0.06639835247 | K34: 0.05563618665 | M34: 0.3486143773 | N34: 0.5427160736
E35: 1.25 | F35: 0.07270247702 | G35: 0.07379172667 | H35: 0.07333067738 | I35: 0.07188839417 | J35: 0.06723091457 | K35: 0.05086208439 | M35: 1.296692656 | N35: 1.570116235
E36: 1.3 | F36: 0.0713433445 | G36: 0.07250679369 | H36: 0.07230039792 | I36: 0.07112591437 | J36: 0.06717177748 | K36: 0.05390556684 | M36: -0.4091473364 | N36: -0.7173200748
E37: 1.35 | F37: 0.06922356442 | G37: 0.07019245593 | H37: 0.06969821518 | I37: 0.06824904257 | J37: 0.06364190364 | K37: 0.04804228446 | M37: -1.595060201 | N37: 0.7106780572
E38: 1.4 | F38: 0.06807740942 | G38: 0.06907668663 | H38: 0.06873975305 | I38: 0.06746105183 | J38: 0.06331366548 | K38: 0.0498347038 | M38: -0.4236897943 | N38: -0.4595043255
E39: 1.45 | F39: 0.06539727429 | G39: 0.06671884999 | H39: 0.06711855148 | I39: 0.06658965618 | J39: 0.06435022349 | K39: 0.05877660552 | M39: -0.4728846544 | N39: -1.982658026
E40: 1.5 | F40: 0.06511545932 | G40: 0.0664331089 | H40: 0.06691272362 | I40: 0.06647691752 | J40: 0.06450349452 | K40: 0.06024494577 | M40: -0.05944829365 | N40: -0.2541745497
E41: 1.55 | F41: 0.06811536735 | G41: 0.06936433774 | H41: 0.06979030064 | I41: 0.06931402217 | J41: 0.06727250036 | K41: 0.06298678881 | M41: 1.588077213 | N41: 0.09805728116
E42: 1.6 | F42: 0.0676121525 | G42: 0.06905670577 | H42: 0.06995368517 | I42: 0.06996160398 | J42: 0.06916344352 | K42: 0.07009402536 | M42: 0.3644774218 | N42: -1.281304204
E43: 1.65 | F43: 0.06731615693 | G43: 0.06880055576 | H43: 0.06985341401 | I43: 0.0700303916 | J43: 0.06968753164 | K43: 0.07266669431 | M43: 0.0339710252 | N43: -0.4514147173
E44: 1.7 | F44: 0.06596659392 | G44: 0.06771138852 | H44: 0.06935774611 | I44: 0.07014140002 | J44: =J43+J$4*$C$9+SQRT($C$9)*J$5*$M44+SQRT($C$9)*J$6*$N44+(K43-J43)/(K$9-J$9)*$C$9 -> 0.07134763655 | K44: 0.08074316873 | M44: 0.05502797162 | N44: -1.601782281
E45: 1.75 | F45: 0.06204839515 | G45: 0.06394172644 | H45: 0.06595455928 | I45: 0.06711786006 | J45: 0.06930535923 | K45: 0.08282768478 | M45: -1.705897561 | N45: -1.003690601
E46: 1.8 | F46: 0.06185951024 | G46: 0.06404104062 | H46: 0.0666965327 | I46: 0.06851565649 | J46: 0.07237455939 | K46: 0.09277190827 | M46: 0.760219193 | N46: -1.729372775
E47: 1.85 | F47: 0.06308855033 | G47: 0.06530766584 | H47: 0.0681016053 | I47: 0.07007232961 | J47: 0.07434175737 | K47: 0.09655153245 | M47: 0.8396905327 | N47: -0.4020929205
E48: 1.9 | F48: 0.05930826419 | G48: 0.06153964997 | H48: 0.06441857203 | I48: 0.06648741849 | J48: 0.07103331293 | K48: 0.09451304715 | M48: -2.036837337 | N48: -0.2605798065
E49: 1.95 | F49: 0.05961806717 | G49: 0.06168846231 | H49: 0.06430315155 | I49: 0.06612088786 | J49: 0.07006979942 | K49: 0.09132087873 | M49: -0.2392534469 | N49: 0.6589542574
E50: 2 | F50: 0.0593297434 | G50: 0.06089079223 | H50: 0.06254197796 | I50: 0.06340931329 | J50: 0.06501264329 | K50: 0.0770446518 | M50: -1.546835622 | N50: 2.499366455
E51: 2.05 | F51: 0.05626532563 | G51: 0.05809780199 | H51: 0.06034459999 | I51: 0.06182062677 | J51: 0.06497575388 | K51: 0.08339962143 | M51: -0.9060099215 | N51: -1.601288149
E52: 2.1 | F52: 0.05567495263 | G52: 0.05746948003 | H52: 0.05969082643 | I52: 0.06115445449 | J52: 0.06430836325 | K52: 0.08289420166 | M52: -0.3989835982 | N52: 0.03338501324
E53: 2.15 | F53: 0.05343127493 | G53: 0.05541892887 | H53: 0.05807477872 | I53: 0.05998593457 | J53: 0.06428811391 | K53: 0.08763180548 | M53: -0.6797976523 | N53: -1.175745658
E54: 2.2 | F54: 0.05210816636 | G54: 0.05397907344 | H54: 0.05644759296 | I54: 0.05818441174 | J54: 0.06207987516 | K54: 0.08394793158 | M54: -1.04007606 | N54: 0.4609492159
E55: 2.25 | F55: 0.05285937535 | G55: 0.0545181076 | H55: 0.05660645756 | I55: 0.05797606645 | J55: 0.06098228181 | K55: 0.07944675133 | M55: -0.1471891347 | N55: 0.9690998288
E56: 2.3 | F56: 0.05117849126 | G56: 0.05279178529 | H56: 0.05483155388 | I56: 0.05616550486 | J56: 0.0591110162 | K56: 0.0774930499 | M56: -1.037884223 | N56: 0.09765360036
E57: 2.35 | F57: 0.0502336309 | G57: 0.05201974114 | H57: 0.05444564556 | I57: 0.05617861716 | J57: 0.06014981073 | K57: 0.08279355586 | M57: -0.01808018177 | N57: -1.045093194
E58: 2.4 | F58: 0.05399266764 | G58: 0.05591833306 | H58: 0.05866214819 | I58: 0.06072587447 | J58: 0.06555177961 | K58: 0.09176110945 | M58: 2.510850195 | N58: -0.8647681353
E59: 2.45 | F59: 0.05228247241 | G59: 0.05451668216 | H59: 0.0579147674 | I59: 0.0606455649 | J59: 0.06716664419 | K59: 0.1002930277 | M59: -0.08081631686 | N59: -1.748773394
E60: 2.5 | F60: 0.05121647774 | G60: 0.05352865236 | H60: 0.05711830973 | I60: 0.06005343541 | J60: 0.06711248473 | K60: 0.1025084493 | M60: -0.3764086627 | N60: -0.5307266488
E61: 2.55 | F61: 0.05278643674 | G61: 0.0549147751 | H61: 0.05817093913 | I61: 0.0607852801 | J61: 0.06706913279 | K61: 0.09947516069 | M61: 0.3607080666 | N61: 0.8513853097
E62: 2.6 | F62: 0.05370097047 | G62: 0.0557852752 | H62: 0.05898615991 | I62: 0.06155788014 | J62: 0.06776155406 | K62: 0.09996408316 | M62: 0.3878244738 | N62: 0.12033235
E63: 2.65 | F63: 0.05574164341 | G63: 0.05775225438 | H63: 0.06083721656 | I63: 0.06330562012 | J63: 0.06927700916 | K63: 0.1006669516 | M63: 0.9333924861 | N63: 0.2806969938
E64: 2.7 | F64: 0.05817909832 | G64: 0.06016529748 | H64: 0.06323164296 | I64: 0.06569398058 | J64: 0.07167585281 | K64: 0.1032251468 | M64: 1.292808738 | N64: 0.02554671472
E65: 2.75 | F65: 0.05621385444 | G65: 0.05832393328 | H65: 0.06166704842 | I65: 0.06441864918 | J65: 0.07114897963 | K65: 0.1058079527 | M65: -0.7553158827 | N65: -0.7506913819
E66: 2.8 | F66: 0.05490668573 | G66: 0.05717585484 | H66: 0.06086502267 | I66: 0.06397511027 | J66: 0.07162661528 | K66: 0.1100772001 | M66: -0.2945137516 | N66: -0.9321303899
E67: 2.85 | F67: 0.05526927344 | G67: 0.05767405909 | H67: 0.06166124939 | I67: 0.06508173232 | J67: 0.07353382649 | K67: 0.1152831334 | M67: 0.5669030472 | N67: -0.8049610565
E68: 2.9 | F68: 0.05029689401 | G68: 0.05268656254 | H68: 0.05666927783 | I68: 0.06009759531 | J68: 0.06859350256 | K68: 0.1106052167 | M68: -2.842410207 | N68: -0.008376836993
E69: 2.95 | F69: 0.05121676696 | G69: 0.05371898485 | H69: 0.05795157789 | I69: 0.0616420172 | J69: 0.07081706797 | K69: 0.1156309835 | M69: 0.8069202477 | N69: -0.6766850013
E70: 3 | F70: 0.05322411039 | G70: 0.05567408122 | H70: 0.05982602629 | I70: 0.06344799399 | J70: 0.07247532278 | K70: 0.116776116 | M70: 0.9493373526 | N70: 0.1936237691
E71: 3.05 | F71: 0.05517342828 | G71: 0.05748069804 | H71: 0.06137019926 | I71: 0.06474182963 | J71: 0.07316638013 | K71: 0.1151343309 | M71: 0.6638675375 | N71: 0.6726692158
E72: 3.1 | F72: 0.05065392354 | G72: 0.05308724932 | H72: 0.05725097559 | I72: 0.06090886554 | J72: 0.07007174903 | K72: 0.1150763519 | M72: -2.19873101 | N72: -0.7383324154
E73: 3.15 | F73: 0.04902997938 | G73: 0.05168635413 | H73: 0.05631748658 | I73: 0.06045474319 | J73: 0.07083836863 | K73: 0.1208008346 | M73: -0.3140284556 | N73: -1.245736379
E74: 3.2 | F74: 0.04978974457 | G74: 0.05238795499 | H74: 0.0569233006 | I74: 0.06097665512 | J74: 0.07117247968 | K74: 0.1204454939 | M74: 0.2247671335 | N74: 0.2366241708
E75: 3.25 | F75: 0.04643193734 | G75: 0.04910143177 | H75: 0.05379915728 | I75: 0.05802669885 | J75: 0.06867955095 | K75: 0.1198435331 | M75: -1.715016349 | N75: -0.4417452203
E76: =E75+$C$9 -> 3.3 | F76: =F75+F$4*$C$9+SQRT($C$9)*F$5*$M76+SQRT($C$9)*F$6*$N76+(G75-F75)/(G$9-F$9)*$C$9 -> 0.04857609793 | G76: =G75+G$4*$C$9+SQRT($C$9)*G$5*$M76+SQRT($C$9)*G$6*$N76+(H75-G75)/(H$9-G$9)*$C$9 -> 0.05105088888 | H76: =H75+H$4*$C$9+SQRT($C$9)*H$5*$M76+SQRT($C$9)*H$6*$N76+(I75-H75)/(I$9-H$9)*$C$9 -> 0.05537832386 | I76: =I75+I$4*$C$9+SQRT($C$9)*I$5*$M76+SQRT($C$9)*I$6*$N76+(J75-I75)/(J$9-I$9)*$C$9 -> 0.05924730249 | J76: =J75+J$4*$C$9+SQRT($C$9)*J$5*$M76+SQRT($C$9)*J$6*$N76+(K75-J75)/(K$9-J$9)*$C$9 -> 0.06902492527 | K76: 0.1167454919 | M76: =RAND()+RAND()+RAND()+RAND()+RAND()+RAND()+RAND()+RAND()+RAND()+RAND()+RAND()+RAND()-6 -> 0.6138426508 | N76: 0.9603104345
E77: 3.35 | F77: 0.04457754409 | G77: 0.0469564096 | H77: 0.0511104475 | I77: 0.05481767522 | J77: 0.06421171307 | K77: =K76+K$4*$C$9+SQRT($C$9)*K$5*$M77+SQRT($C$9)*K$6*$N77 -> 0.1104634754 | M77: -2.539839766 | N77: 0.4431203964
E78: 3.4 | F78: 0.04595493469 | G78: 0.04832351211 | H78: 0.05247479613 | I78: 0.0561908329 | J78: 0.06562732976 | K78: 0.1121174801 | M78: 0.7061599379 | N78: -0.005019291498
E79: 3.45 | F79: 0.04411171402 | G79: 0.04656682418 | H79: 0.05090839389 | I79: 0.05482619459 | J79: 0.06478719811 | K79: 0.1134426456 | M79: -0.8245519008 | N79: -0.5120819356
E80: 3.5 | F80: 0.0413710175 | G80: 0.04416851256 | H80: 0.04921149828 | I80: 0.05384210723 | J80: 0.06560489397 | K80: 0.1215286589 | M80: -0.6147495336 | N80: -1.855941301
E81: 3.55 | F81: 0.04233479873 | G81: 0.04494034561 | H81: 0.04961553361 | I81: 0.05388964992 | J81: 0.06478062655 | K81: 0.1172595529 | M81: -0.04812307641 | N81: 0.9575544478
E82: 3.6 | F82: 0.04125910255 | G82: 0.04382769106 | H82: 0.04844453872 | I82: 0.05267153132 | J82: 0.06346374067 | K82: 0.1155981879 | M82: -0.7507756769 | N82: 0.1442183168
E83: 3.65 | F83: 0.04087532259 | G83: 0.04324013297 | H83: 0.04746450232 | I83: 0.05131014328 | J83: 0.06116766589 | K83: 0.1096143115 | M83: -0.8303136099 | N83: 1.02396209
E84: 3.7 | F84: 0.04479701837 | G84: 0.04708589186 | H84: 0.05117298968 | I84: 0.05489239451 | J84: 0.06445267927 | K84: 0.1117700287 | M84: 1.93848982 | N84: 0.3533295185
E85: 3.75 | F85: 0.04483867386 | G85: 0.04752490248 | H85: 0.05242085856 | I85: 0.0569600647 | J85: 0.0685878955 | K85: 0.1242373112 | M85: 1.093474887 | N85: -2.134898285
E86: 3.8 | F86: 0.04704266347 | G86: 0.04919540039 | H86: 0.05303808727 | I86: 0.05653487411 | J86: 0.06557440307 | K86: 0.1109110444 | M86: -0.3116345895 | N86: 2.764460913
E87: 3.85 | F87: 0.04797249342 | G87: 0.04980820772 | H87: 0.05303014905 | I87: 0.05591694648 | J87: 0.06344890571 | K87: 0.1028210788 | M87: -0.4049088239 | N87: 1.627348227
E88: 3.9 | F88: 0.04839931465 | G88: 0.05018602678 | H88: 0.05332286742 | I88: 0.05613522541 | J88: 0.06349821931 | K88: 0.1022745948 | M88: 0.07097242903 | N88: 0.2189517486
E89: 3.95 | F89: 0.04444049492 | G89: 0.04639090188 | H89: 0.04986765716 | I89: 0.05303049584 | J89: 0.06128659658 | K89: 0.1037161519 | M89: -1.785701251 | N89: -0.8984214194
E90: 4 | F90: 0.04593403175 | G90: 0.04757990152 | H90: 0.05045974532 | I90: 0.05303614347 | J90: 0.05984282722 | K90: 0.0965455267 | M90: -0.05194015937 | N90: 1.566752186
E91: 4.05 | F91: 0.0463993297 | G91: 0.04805150381 | H91: 0.05095577281 | I91: 0.05356697218 | J91: 0.06047710326 | K91: 0.09767801318 | M91: 0.2497474826 | N91: -0.06708984659
E92: 4.1 | F92: 0.04706865148 | G92: 0.04879632551 | H92: 0.05186307945 | I92: 0.05464704483 | J92: 0.06200533514 | K92: 0.1010812133 | M92: 0.5562058876 | N92: -0.4295968111
E93: 4.15 | F93: 0.04775111834 | G93: 0.04949128251 | H93: 0.0525941846 | I93: 0.05542448462 | J93: 0.06291465544 | K93: 0.1025948763 | M93: 0.3845236861 | N93: -0.09657049251
E94: 4.2 | F94: 0.04762763439 | G94: 0.04940037925 | H94: 0.05257930686 | I94: 0.05549572465 | J94: 0.0632170248 | K94: 0.1038963046 | M94: -0.01099121163 | N94: -0.2008046724
E95: 4.25 | F95: 0.04518967246 | G95: 0.04709471073 | H95: 0.0505487984 | I95: 0.05375037456 | J95: 0.06220019599 | K95: 0.1058648594 | M95: -1.027788013 | N95: -0.7239978613
E96: 4.3 | F96: 0.05027967246 | G96: 0.0519141174 | H96: 0.05483731293 | I96: 0.05751790154 | J96: 0.06468066709 | K96: 0.103260229 | M96: 2.049931398 | N96: 1.39711561
E97: 4.35 | F97: 0.05115140533 | G97: 0.05260995141 | H97: 0.05519137664 | I97: 0.05754000607 | J97: 0.06388805911 | K97: 0.09928397465 | M97: -0.0366285414 | N97: 0.9002501772
E98: 4.4 | F98: 0.05110287666 | G98: 0.05282476921 | H98: 0.0559426587 | I98: 0.05883747009 | J98: 0.06656597186 | K98: 0.107566093 | M98: 0.68087347 | N98: -1.409448331
E99: 4.45 | F99: 0.05166536624 | G99: 0.05358205309 | H99: 0.05709905691 | I99: 0.06040260729 | J99: 0.06916778159 | K99: 0.1143821689 | M99: 0.8227903859 | N99: -1.047487083
E100: 4.5 | F100: 0.04888761657 | G100: 0.05080711883 | H100: 0.05433904348 | I100: 0.05766704703 | J100: 0.06650797755 | K100: 0.1120817543 | M100: -1.587167763 | N100: -0.03616853134
E101: 4.55 | F101: 0.04789854024 | G101: 0.04980943622 | H101: 0.05333321216 | I101: 0.05666250724 | J101: 0.06552106525 | K101: 0.1112202545 | M101: -0.6199213895 | N101: 0.02514671192
E102: 4.6 | F102: 0.04956855804 | G102: 0.05139775649 | H102: 0.05476698401 | I102: 0.05795107889 | J102: 0.06646081237 | K102: 0.1108187434 | M102: 0.6618683356 | N102: 0.4108966206
E103: 4.65 | F103: 0.05404474583 | G103: 0.05566681401 | H103: 0.05863041904 | I103: 0.06141814771 | J103: 0.0689509223 | K103: 0.1094578705 | M103: 1.881635263 | N103: 1.072004007
E104: 4.7 | F104: 0.05125059111 | G104: 0.05301586179 | H104: 0.05627430935 | I104: 0.05936604498 | J104: 0.06767258685 | K104: 0.1113405158 | M104: -1.198214062 | N104: -0.7700782923
E105: 4.75 | F105: 0.04968077756 | G105: 0.0513864556 | H105: 0.05453396265 | I105: 0.05752383059 | J105: 0.06558927413 | K105: 0.1083501599 | M105: -1.085208404 | N105: 0.2980049631
E106: 4.8 | F106: 0.04618538687 | G106: 0.04813112444 | H106: 0.0517668099 | I106: 0.05525383798 | J106: 0.06457555684 | K106: 0.112420588 | M106: -1.322995921 | N106: -1.277481466
E107: 4.85 | F107: 0.04438080862 | G107: 0.04649365915 | H107: 0.05047145144 | I107: 0.05430947728 | J107: 0.06452187879 | K107: 0.1159753839 | M107: -0.5889679414 | N107: -0.8926249204
E108: 4.9 | F108: 0.04230399066 | G108: 0.04439624557 | H108: 0.04834055577 | I108: 0.05215390005 | J108: 0.06231757053 | K108: 0.1136124163 | M108: -1.27103764 | N108: 0.09600967714
E109: 4.95 | F109: 0.04534528226 | G109: 0.04712204598 | H109: 0.05044291753 | I109: 0.0536415334 | J109: 0.06228112209 | K109: 0.1075159394 | M109: 0.7658514084 | N109: 1.648568426
E110: 5 | F110: 0.04607416109 | G110: 0.04794581032 | H110: 0.05146383716 | I110: 0.05486822821 | J110: 0.06403476633 | K110: 0.1114284672 | M110: 0.6285022035 | N110: -0.5095691394
E111: 5.05 | F111: 0.04474155733 | G111: 0.04672032726 | H111: 0.05045982606 | I111: 0.05409421855 | J111: 0.06384808673 | K111: 0.1136362856 | M111: -0.4928713264 | N111: -0.5729713082
E112: 5.1 | F112: 0.04362021036 | G112: 0.04551785605 | H112: 0.04910218862 | I112: 0.05258985443 | J112: 0.06198903708 | K112: 0.1103972336 | M112: -0.9044351663 | N112: 0.4183997209
E113: 5.15 | F113: 0.0429323155 | G113: 0.04506474516 | H113: 0.04912558482 | I113: 0.05309810756 | J113: 0.06372135733 | K113: 0.1170676247 | M113: 0.2226348381 | N113: -1.242768122
E114: 5.2 | F114: 0.04374671545 | G114: 0.04594049824 | H114: 0.05013084509 | I114: 0.05424113538 | J114: 0.06522053517 | K114: 0.1200204418 | M114: 0.5706419332 | N114: -0.3293773941
E115: 5.25 | F115: 0.04727998701 | G115: 0.04908162875 | H115: 0.05249436091 | I115: 0.05583520766 | J115: 0.06490250908 | K115: 0.1120791368 | M115: 0.8207925125 | N115: 2.057502578
E116: 5.3 | F116: 0.04661950372 | G116: 0.04848199352 | H116: 0.05202296012 | I116: 0.05550012328 | J116: 0.06491950125 | K116: 0.1135483569 | M116: -0.2469498882 | N116: -0.3249485495
E117: 5.35 | F117: 0.04861321687 | G117: 0.05049584602 | H117: 0.05408350476 | I117: 0.05761535286 | J117: 0.06718255632 | K117: 0.1164425659 | M117: 1.120849083 | N117: -0.1099063044
E118: 5.4 | F118: 0.04885876349 | G118: 0.05056644986 | H118: 0.0538105156 | I118: 0.05700667478 | J118: 0.06574559096 | K118: 0.1117303269 | M118: -0.4026879521 | N118: 0.9173300799
E119: 5.45 | F119: 0.04870145671 | G119: 0.05030271498 | H119: 0.05334010008 | I119: 0.05633739447 | J119: 0.06458990495 | K119: 0.1086747031 | M119: -0.4319353675 | N119: 0.5576789057
E120: 5.5 | F120: 0.04800429298 | G120: 0.04991430222 | H120: 0.05357525147 | I120: 0.05720383803 | J120: 0.0670451805 | K120: 0.1175352845 | M120: 0.4292794645 | N120: -1.625905636
E121: 5.55 | F121: 0.05203614617 | G121: 0.0534617873 | H121: 0.05615995259 | I121: 0.05883339602 | J121: 0.06629734217 | K121: 0.1073113258 | M121: 0.846991564 | N121: 2.547758132
E122: 5.6 | F122: 0.05199512589 | G122: 0.05359124834 | H122: 0.05663622193 | I122: 0.05966402808 | J122: 0.06802416464 | K122: 0.1126797305 | M122: 0.4136684342 | N122: -0.8968420637
E123: 5.65 | F123: 0.0523148514 | G123: 0.05380518534 | H123: 0.05664432415 | I123: 0.05947376392 | J123: 0.06734815313 | K123: 0.1101078779 | M123: -0.1620397518 | N123: 0.5574753273
E124: 5.7 | F124: 0.05204246021 | G124: 0.05360597955 | H124: 0.05659713101 | I124: 0.05958596681 | J124: 0.06786887831 | K124: 0.1123141088 | M124: 0.009759873427 | N124: -0.3834113455
E125: 5.75 | F125: 0.05054398023 | G125: 0.05228939156 | H125: 0.05564987135 | I125: 0.05901533458 | J125: 0.06824972466 | K125: 0.116547558 | M125: -0.3742402649 | N125: -0.9546112071
E126: 5.8 | F126: 0.05119058802 | G126: 0.05281998522 | H126: 0.05595388636 | I126: 0.05909998668 | J126: 0.06779574842 | K126: 0.1139756586 | M126: -0.01324411912 | N126: 0.6135023662
E127: 5.85 | F127: 0.05061536697 | G127: 0.05206960589 | H127: 0.054858548 | I127: 0.05766682241 | J127: 0.06552764534 | K127: 0.1084093194 | M127: -0.8587182403 | N127: 0.9253964374
E128: 5.9 | F128: 0.05125854587 | G128: 0.05238172673 | H128: 0.0545138207 | I128: 0.05667229804 | J128: 0.06291811736 | K128: 0.09938912647 | M128: -0.6088436337 | N128: 1.746342317
E129: 5.95 | F129: 0.05343989293 | G129: 0.05460081063 | H129: 0.05681355911 | I129: 0.05905966064 | J129: 0.06553391569 | K129: 0.1029835503 | M129: 1.290716803 | N129: -0.1933187481
E130: 6 | F130: 0.05435205702 | G130: 0.05532174983 | H130: 0.05715714458 | I130: 0.05903278157 | J130: 0.06459017831 | K130: 0.09843416703 | M130: -0.06016231877 | N130: 1.012007366
E131: 6.05 | F131: 0.05134594267 | G131: 0.05239370285 | H131: 0.0543902458 | I131: 0.05643384098 | J131: 0.06242035816 | K131: 0.09805101216 | M131: -1.492863019 | N131: -0.4041594885
E132: 6.1 | F132: 0.05015574842 | G132: 0.05112984462 | H132: 0.05298399267 | I132: 0.05489192493 | J132: 0.06054845461 | K132: 0.09492417361 | M132: -0.9043671967 | N132: 0.3948095975
E133: 6.15 | F133: 0.05493316318 | G133: 0.05566197158 | H133: 0.05703039875 | I133: 0.0584592655 | J133: 0.06292723452 | K133: 0.09261621306 | M133: 1.953638772 | N133: 1.298429078
E134: 6.2 | F134: 0.05252452938 | G134: 0.0533117805 | H134: 0.05480187143 | I134: 0.05635898198 | J134: 0.06115660475 | K134: 0.09224274233 | M134: -1.208015162 | N134: -0.2989607082
E135: 6.25 | F135: 0.05856065345 | G135: 0.05919604853 | H135: 0.06038713133 | I135: 0.06165173972 | J135: 0.06572712161 | K135: 0.09399856136 | M135: 2.922977727 | N135: 0.8081202264
E136: 6.3 | F136: 0.06121311442 | G136: 0.06183712657 | H136: 0.06301007487 | I136: 0.06426298224 | J136: 0.06831808638 | K136: 0.09658897495 | M136: 1.428002594 | N136: 0.06966274741
E137: 6.35 | F137: 0.06300654351 | G137: 0.06355961151 | H137: 0.06459523217 | I137: 0.06571717427 | J137: 0.06945381712 | K137: 0.09653061604 | M137: 0.7813050694 | N137: 0.3836434782
E138: 6.4 | F138: 0.06414335489 | G138: 0.06480178176 | H138: 0.06605261185 | I138: 0.06739605623 | J138: 0.07169538218 | K138: 0.1011048568 | M138: 0.9086908025 | N138: -0.543346148
E139: 6.45 | F139: 0.06871517571 | G139: 0.06915576319 | H139: 0.06997533892 | I139: 0.07089375371 | J139: 0.07413941485 | K139: 0.09940952224 | M139: 1.922294101 | N139: 1.157699469
E140: =E139+$C$9 -> 6.5 | F140: =F139+F$4*$C$9+SQRT($C$9)*F$5*$M140+SQRT($C$9)*F$6*$N140+(G139-F139)/(G$9-F$9)*$C$9 -> 0.06904731566 | G140: =G139+G$4*$C$9+SQRT($C$9)*G$5*$M140+SQRT($C$9)*G$6*$N140+(H139-G139)/(H$9-G$9)*$C$9 -> 0.06924288765 | H140: =H139+H$4*$C$9+SQRT($C$9)*H$5*$M140+SQRT($C$9)*H$6*$N140+(I139-H139)/(I$9-H$9)*$C$9 -> 0.0695767912 | I140: =I139+I$4*$C$9+SQRT($C$9)*I$5*$M140+SQRT($C$9)*I$6*$N140+(J139-I139)/(J$9-I$9)*$C$9 -> 0.07001569209 | J140: =J139+J$4*$C$9+SQRT($C$9)*J$5*$M140+SQRT($C$9)*J$6*$N140+(K139-J139)/(K$9-J$9)*$C$9 -> 0.07207144307 | K140: 0.09266679746 | M140: =RAND()+RAND()+RAND()+RAND()+RAND()+RAND()+RAND()+RAND()+RAND()+RAND()+RAND()+RAND()-6 -> -0.5179394384 | N140: 1.301264039
E141: 6.55 | F141: 0.06679454385 | G141: 0.06669126661 | H141: 0.06643176652 | I141: 0.06628335684 | J141: 0.06687969634 | K141: =K140+K$4*$C$9+SQRT($C$9)*K$5*$M141+SQRT($C$9)*K$6*$N141 -> 0.08173313045 | M141: -2.106875105 | N141: 1.585074771
E142: 6.6 | F142: 0.06536502477 | G142: 0.06531735147 | H142: 0.0651732917 | I142: 0.06514635169 | J142: 0.06605524806 | K142: 0.08226803279 | M142: -0.6478831102 | N142: -0.2792577169
E143: 6.65 | F143: 0.06913737975 | G143: 0.06868220095 | H143: 0.06772730169 | I143: 0.06689548968 | J143: 0.06580113944 | K143: 0.07410557126 | M143: 0.9637727068 | N143: 2.157873587
E144: 6.7 | F144: 0.07006962095 | G144: 0.06943002266 | H144: 0.06811039655 | I144: 0.0669197653 | J144: 0.06493733861 | K144: 0.06981282273 | M144: 0.01074381258 | N144: 0.9846917619
E145: 6.75 | F145: 0.07450680791 | G145: 0.07361085669 | H145: 0.07178257895 | I145: 0.07008914571 | J145: 0.06685876981 | K145: 0.06687315394 | M145: 1.773875342 | N145: 1.363698618
E146: 6.8 | F146: 0.0751971919 | G146: 0.07441931761 | H146: 0.07283119151 | I146: 0.07138370386 | J146: 0.06877734804 | K146: 0.07142935518 | M146: 0.7327940867 | N146: -0.6057696137
E147: 6.85 | F147: 0.07072555738 | G147: 0.07016234948 | H147: 0.06900749884 | I147: 0.06799902734 | J147: 0.06649949294 | K147: 0.07371231892 | M147: -1.886465995 | N147: -1.113433309
E148: 6.9 | F148: 0.06894891129 | G148: 0.06854423502 | H148: 0.06771033677 | I148: 0.06702850761 | J148: 0.06635496192 | K148: 0.07699253855 | M148: -0.5430986467 | N148: -0.8175709604
E149: 6.95 | F149: 0.07114067833 | G149: 0.07056967522 | H149: 0.06940696016 | I149: 0.06840195574 | J149: 0.06692992219 | K149: 0.07448457332 | M149: 0.7626018134 | N149: 0.8921303696
E150: 7 | F150: 0.06982063931 | G150: 0.06924458017 | H150: 0.06807553914 | I150: 0.06706980375 | J150: 0.06560543437 | K150: 0.07330836523 | M150: -0.7454109562 | N150: 0.0441350235
E151: 7.05 | F151: 0.06861294607 | G151: 0.06803868947 | H151: 0.06687699016 | I151: 0.06588414655 | J151: 0.06446155497 | K151: 0.0724476731 | M151: -0.6635607238 | N151: 0.008547802997
E152: 7.1 | F152: 0.06838097837 | G152: 0.06797814973 | H152: 0.06716299493 | I152: 0.06652220261 | J152: 0.06598933909 | K152: 0.07764857682 | M152: 0.3556924391 | N152: -0.8834171598
E153: 7.15 | F153: 0.06833225983 | G153: 0.06784167668 | H153: 0.06685465466 | I153: 0.06604746023 | J153: 0.0651082368 | K153: 0.07524591739 | M153: -0.2713545336 | N153: 0.4807142462
E154: 7.2 | F154: 0.06886962737 | G154: 0.06824519604 | H154: 0.06699407401 | I154: 0.0659282045 | J154: 0.06435195731 | K154: 0.0720481904 | M154: -0.0703598316 | N154: 0.7237075572
E155: 7.25 | F155: 0.06903747668 | G155: 0.06831757509 | H155: 0.06687906468 | I155: 0.06563119277 | J155: 0.06360962849 | K155: 0.06963627794 | M155: -0.1661673919 | N155: 0.5222614443
E156: 7.3 | F156: 0.0633771193 | G156: 0.06296190214 | H156: 0.0621362698 | I156: 0.06150662414 | J156: 0.06104035145 | K156: 0.07340290905 | M156: -2.303347341 | N156: -1.582619801
E157: 7.35 | F157: 0.06481871073 | G157: 0.06421588547 | H157: 0.06301850436 | I157: 0.06202242168 | J157: 0.06064982609 | K157: 0.0694848467 | M157: 0.2820018647 | N157: 1.007958438
E158: 7.4 | F158: 0.06250294925 | G158: 0.06227765851 | H158: 0.06183877332 | I158: 0.0616064632 | J158: 0.06215306881 | K158: 0.07877049015 | M158: -0.2337990888 | N158: -1.964990975
E159: 7.45 | F159: 0.05629103969 | G159: 0.0563557128 | H159: 0.05650014275 | I159: 0.05685639021 | J159: 0.05888417928 | K159: 0.08151141845 | M159: -2.66737142 | N159: -1.503801458
E160: 7.5 | F160: 0.06045742223 | G160: 0.06036141036 | H160: 0.06018781947 | I160: 0.06023125535 | J160: 0.061486773 | K160: 0.08109413506 | M160: 1.866327012 | N160: 0.8676592253
E161: 7.55 | F161: 0.06158967962 | G161: 0.06169927957 | H161: 0.06194022422 | I161: 0.06240337225 | J161: 0.06471785688 | K161: 0.08863715299 | M161: 1.198287434 | N161: -1.059110959
E162: 7.6 | F162: 0.06161105252 | G162: 0.06179652576 | H162: 0.06219249272 | I162: 0.06281580713 | J162: 0.06554034227 | K162: 0.09116436613 | M162: 0.2086754684 | N162: -0.3760772995
E163: 7.65 | F163: 0.06091833337 | G163: 0.06098138456 | H163: 0.06113574797 | I163: 0.06152257062 | J163: 0.06366543143 | K163: 0.08702237658 | M163: -0.7471160696 | N163: 0.667652058
E164: 7.7 | F164: 0.0603311539 | G164: 0.06012325864 | H164: 0.05973893546 | I164: 0.05959215109 | J164: 0.06041045954 | K164: 0.07853388539 | M164: -1.100060555 | N164: 1.449515135
E165: 7.75 | F165: 0.06062698497 | G165: 0.06044231038 | H165: 0.0601076015 | I165: 0.06001547865 | J165: 0.06097983122 | K165: 0.07976456054 | M165: 0.2231285452 | N165: -0.09777523958
E166: 7.8 | F166: 0.06134831151 | G166: 0.06098182391 | H166: 0.06028662952 | I166: 0.05983903611 | J166: 0.05992406064 | K166: 0.07526618031 | M166: -0.1129695441 | N166: 0.9813932231
E167: 7.85 | F167: 0.05842969746 | G167: 0.05817668901 | H167: 0.05771156178 | I167: 0.05749901858 | J167: 0.05818097007 | K167: 0.07599335953 | M167: -1.317529138 | N167: -0.571825085
E168: 7.9 | F168: 0.05927050729 | G168: 0.05896709689 | H168: 0.05840424375 | I168: 0.05809892615 | J168: 0.05855821688 | K168: 0.07555552405 | M168: 0.3226020261 | N168: 0.2908174297
E169: 7.95 | F169: 0.06004520844 | G169: 0.05989554821 | H169: 0.05964324329 | I169: 0.05965339435 | J169: 0.06091058909 | K169: 0.08117635502 | M169: 0.8574623605 | N169: -0.7828906835
E170: 8 | F170: 0.05942126704 | G170: 0.05937008609 | H170: 0.05931775822 | I170: 0.05953277612 | J170: 0.06131133153 | K170: 0.08373044338 | M170: -0.08339984629 | N170: -0.4916910477
E171: 8.05 | F171: 0.06212294541 | G171: 0.06183707284 | H171: 0.06131835156 | I171: 0.06107183551 | J171: 0.06170568956 | K171: 0.0796078368 | M171: 0.8414736544 | N171: 1.261630154
E172: 8.1 | F172: 0.06363295985 | G172: 0.06329955095 | H172: 0.06268871882 | I172: 0.06235492122 | J172: 0.0627796312 | K172: 0.07991771698 | M172: 0.7047790947 | N172: 0.2773365104
E173: 8.15 | F173: 0.06399937597 | G173: 0.0635343998 | H173: 0.06266336757 | I173: 0.06207416906 | J173: 0.06186939133 | K173: 0.07656322609 | M173: -0.1682637025 | N173: 0.7198411327
E174: 8.2 | F174: 0.06493441039 | G174: 0.06423365558 | H174: 0.0628939738 | I174: 0.06184089508 | J174: 0.06048539028 | K174: 0.07065539022 | M174: -0.1382036507 | N174: 1.268518136
E175: 8.25 | F175: 0.06503684085 | G175: 0.06430513014 | H175: 0.0629064181 | I175: 0.06179904896 | J175: 0.06031676494 | K175: 0.07006924032 | M175: -0.02475945737 | N175: 0.1912593311
E176: 8.3 | F176: 0.06114244005 | G176: 0.06085368782 | H176: 0.06034374873 | I176: 0.06012986335 | J176: 0.06089023585 | K176: 0.07970307749 | M176: -0.9337611766 | N176: -2.30178469
E177: 8.35 | F177: 0.06397952783 | G177: 0.06354840729 | H177: 0.06275656253 | I177: 0.062265454 | J177: 0.06234171641 | K177: 0.07848430958 | M177: 1.18063658 | N177: 0.7781921327
E178: 8.4 | F178: 0.06138474628 | G178: 0.06103766035 | H178: 0.06041669126 | I178: 0.06010111334 | J178: 0.06062509186 | K178: 0.07863075502 | M178: -1.219273799 | N178: -0.4126174073
E179: 8.45 | F179: 0.06532818646 | G179: 0.06481313897 | H179: 0.06385902931 | I179: 0.06321493826 | J179: 0.0629264818 | K179: 0.07774923093 | M179: 1.728807644 | N179: 0.9135882879
E180: 8.5 | F180: 0.06514483962 | G180: 0.0647913116 | H180: 0.06416299993 | I180: 0.06384930712 | J180: 0.06439564 | K180: 0.08263166133 | M180: 0.3472912269 | N180: -0.8195561578
E181: 8.55 | F181: 0.0678145973 | G181: 0.06704731033 | H181: 0.06559421691 | I181: 0.06446031552 | J181: 0.06296488611 | K181: 0.07309869886 | M181: 0.3295657117 | N181: 2.207539968
E182: 8.6 | F182: 0.06533818138 | G182: 0.06460052952 | H182: 0.06320941996 | I182: 0.06214204887 | J182: 0.0608216475 | K182: 0.07174002006 | M182: -1.296535021 | N182: -0.1249453867
E183: 8.65 | F183: 0.06687198386 | G183: 0.06617760524 | H183: 0.06487573378 | I183: 0.06390212059 | J183: 0.06282480983 | K183: 0.07479718663 | M183: 0.9823469996 | N183: -0.1963432545
E184: 8.7 | F184: 0.0660260233 | G184: 0.06493122385 | H184: 0.06283118078 | I184: 0.06106388975 | J184: 0.05801106693 | K184: 0.06215958584 | M184: -1.589541199 | N184: 2.138434525
E185: 8.75 | F185: 0.06747714479 | G185: 0.06629305978 | H185: 0.06401709448 | I185: 0.06207834946 | J185: 0.05860555264 | K185: 0.06117114365 | M185: 0.5752217463 | N185: 0.5017984109
E186: 8.8 | F186: 0.06523245653 | G186: 0.06385618989 | H186: 0.06119848947 | I186: 0.0588824525 | J186: 0.05447511263 | K186: 0.05340248721 | M186: -1.776091464 | N186: 1.043517668
E187: 8.85 | F187: 0.066417887 | G187: 0.06513557605 | H187: 0.06266839483 | I187: 0.06054729599 | J187: 0.05663602106 | K187: 0.05765570709 | M187: 0.9463693152 | N187: -0.4616013466
E188: 8.9 | F188: 0.06606886873 | G188: 0.06484344077 | H188: 0.06249261343 | I188: 0.06049226413 | J188: 0.05689163476 | K188: 0.0592556435 | M188: -0.01784332884 | N188: -0.2662063712
E189: 8.95 | F189: 0.06719174411 | G189: 0.0659916692 | H189: 0.06369411635 | I189: 0.06175141504 | J189: 0.05830371242 | K189: 0.06137679034 | M189: 0.7150706163 | N189: -0.09997636492
E190: 9 | F190: 0.06540299497 | G190: 0.06394654171 | H190: 0.06113878147 | I190: 0.05869022498 | J190: 0.05398671444 | K190: 0.05213117663 | M190: -1.700928294 | N190: 1.382645155
E191: 9.05 | F191: 0.06666522525 | G191: 0.06533316443 | H191: 0.06277671972 | I191: 0.06058381048 | J191: 0.05652826386 | K191: 0.05737057303 | M191: 1.075895625 | N191: -0.6203827578
E192: 9.1 | F192: 0.06769409861 | G192: 0.0662610247 | H192: 0.06350506625 | I192: 0.06111695514 | J192: 0.05658229349 | K192: 0.0556063293 | M192: 0.3117638492 | N192: 0.5658843759
E193: 9.15 | F193: 0.06611123032 | G193: 0.06493786947 | H193: 0.06270383171 | I193: 0.06084193427 | J193: 0.05763171967 | K193: 0.06205529425 | M193: -0.1373360821 | N193: -1.331686696
E194: 9.2 | F194: 0.06440034256 | G194: 0.06287384526 | H194: 0.05993601179 | I194: 0.05737459343 | J194: 0.05242452093 | K194: 0.04997589817 | M194: -1.929301083 | N194: 1.893048812
E195: 9.25 | F195: 0.0654898485 | G195: 0.06379286707 | H195: 0.06051652556 | I195: 0.0576208565 | J195: 0.05184409616 | K195: 0.04619226441 | M195: 0.1563927155 | N195: 0.9323793262
E196: 9.3 | F196: 0.06679880605 | G196: 0.06524790557 | H196: 0.06226616956 | I196: 0.05966934631 | J196: 0.0546486748 | K196: 0.05213171332 | M196: 1.168489421 | N196: -0.7328523888
E197: 9.35 | F197: 0.0677249284 | G197: 0.06609094646 | H197: 0.06294547498 | I197: 0.06018914031 | J197: 0.05477871643 | K197: 0.05080431818 | M197: 0.3096958107 | N197: 0.4731695234
E198: 9.4 | F198: 0.06687589904 | G198: 0.06554666231 | H198: 0.06301309291 | I198: 0.06087286904 | J198: 0.05701177663 | K198: 0.05933890479 | M198: 0.4035168958 | N198: -1.566997745
E199: 9.45 | F199: 0.06470802822 | G199: 0.06367208085 | H199: 0.0617274865 | I199: 0.0601804317 | J199: 0.05781135061 | K199: 0.06619392875 | M199: -0.374444348 | N199: -1.506407505
E200: 9.5 | F200: 0.06304120361 | G200: 0.06217994808 | H200: 0.06058711874 | I200: 0.05939600904 | J200: 0.05792587059 | K200: 0.06997561133 | M200: -0.4342063059 | N200: -0.8821108096
E201: 9.55 | F201: 0.06440545573 | G201: 0.06323762176 | H201: 0.06103400233 | I201: 0.0592362689 | J201: 0.05625860256 | K201: 0.0623397419 | M201: -0.0900233961 | N201: 1.650327219
E202: 9.6 | F202: 0.06433605051 | G202: 0.06286414853 | H202: 0.06005474566 | I202: 0.05765538131 | J202: 0.05318259706 | K202: 0.05335908139 | M202: -0.8760416423 | N202: 1.637430402
E203: 9.65 | F203: 0.06317390071 | G203: 0.0616761618 | H203: 0.05881742388 | I203: 0.05637286278 | J203: 0.0517960116 | K203: 0.05164604828 | M203: -0.7008903047 | N203: 0.17387242
... 7 more rows
